bitfinex/quotes_SOLUSD_20250714
["timestamp","ask_amount","ask_price","bid_price","bid_amount"]
[1752470829916,0.06,167.66,167.65,44.67126078]
[1752470830811,0.06,167.66,167.6,89.69]
[1752470831132,0.06,167.66,167.65,8.55126078]
[1752470831317,0.06,167.66,167.65,44.49126078]
[1752470831522,0.06,167.66,167.65,44.58126078]
[1752470831723,0.1,167.76,167.66,6.249]
[1752470831908,8.55126078,167.73,167.67,16.78468397]
[1752470832106,8.55126078,167.73,167.71,8.55126078]
[1752470832107,0.69,167.72,167.71,8.55126078]
[1752470832307,0.69,167.72,167.66,6.249]
[1752470832523,0.06,167.73,167.69,8.55126078]
[1752470832731,8.61126078,167.73,167.68,8.55126078]
[1752470832927,0.75,167.73,167.7,35.96]
[1752470833233,0.69,167.72,167.71,35.96]
[1752470833441,9.24126078,167.72,167.61,6.6028]
[1752470833638,8.55126078,167.69,167.64,8.55126078]
[1752470833855,0.69,167.69,167.66,8.55126078]
[1752470834010,0.69,167.69,167.61,6.6028]
[1752470834011,0.69,167.71,167.68,8.55126078]
[1752470834206,0.69,167.71,167.67,8.55126078]
[1752470834509,8.55126078,167.72,167.61,23.38748397]
[1752470834510,0.75,167.73,167.68,8.55126078]
[1752470834833,0.06,167.73,167.71,8.55126078]
[1752470835024,26.06,167.73,167.72,35.9]
[1752470835233,26.06,167.73,167.72,44.45126078]
[1752470835234,0.06,167.73,167.72,44.45126078]
[1752470835735,0.06,167.73,167.66,26.0]
[1752470835937,0.75,167.73,167.7,8.55126078]
[1752470836131,0.06,167.73,167.71,35.9]
[1752470836326,0.06,167.73,167.72,35.9]
[1752470836648,8.61126078,167.73,167.67,0.88441303]
[1752470836842,7.7866,167.71,167.68,36.62]
[1752470837144,0.69,167.7,167.68,36.62]
[1752470837350,0.69,167.69,167.68,36.62]
[1752470837552,0.06,167.73,167.68,45.17126078]
[1752470837721,0.69,167.72,167.68,45.17126078]
[1752470837926,0.69,167.72,167.68,36.62]
[1752470837927,9.24126078,167.72,167.68,36.62]
[1752470838126,0.69,167.71,167.69,8.55126078]
[1752470838327,0.06,167.73,167.69,8.55126078]
[1752470838542,0.06,167.73,167.7,8.55126078]
[1752470838847,0.06,167.73,167.71,36.58]
[1752470839027,0.75,167.73,167.71,36.58]
[1752470839836,0.06,167.73,167.71,36.58]
[1752470840037,0.75,167.73,167.71,36.58]
[1752470840439,0.75,167.73,167.71,45.13126078]
[1752470840838,0.06,167.73,167.71,45.13126078]
[1752470841348,0.75,167.73,167.71,36.58]
[1752470841719,0.75,167.73,167.71,45.13126078]
[1752470841946,0.06,167.73,167.71,36.58]
[1752470842134,0.06,167.73,167.72,8.55126078]
[1752470843248,0.06,167.73,167.71,36.58]
[1752470843449,0.69,167.72,167.67,90.48441303]
[1752470843628,0.69,167.72,167.67,0.88441303]
[1752470843825,0.06,167.73,167.71,8.55126078]
[1752470844030,0.75,167.73,167.72,36.8]
[1752470844526,0.06,167.73,167.72,36.8]
[1752470844924,0.06,167.73,167.72,45.35126078]
[1752470845137,9.30126078,167.73,167.67,0.88441303]
[1752470845338,9.24126078,167.72,167.68,45.31126078]
[1752470845544,0.69,167.71,167.68,36.76]
[1752470845742,0.69,167.71,167.68,45.31126078]
[1752470846136,0.75,167.73,167.7,8.55126078]
[1752470846343,0.69,167.72,167.71,36.7]
[1752470846632,0.06,167.73,167.71,45.23126078]
[1752470846849,0.06,167.73,167.72,8.55126078]
[1752470849333,0.06,167.73,167.71,36.68]
[1752470849534,0.06,167.73,167.72,8.55126078]
[1752470852361,0.06,167.73,167.71,36.68]
[1752470852664,0.06,167.73,167.72,8.55126078]
[1752470853365,0.06,167.73,167.71,36.68]
[1752470853674,9.24126078,167.72,167.67,9.43567381]
[1752470853837,0.69,167.71,167.68,36.43]
[1752470854152,0.69,167.7,167.68,36.43]
[1752470854333,0.69,167.7,167.68,44.98126078]
[1752470854532,0.69,167.72,167.69,8.55126078]
[1752470854758,0.69,167.71,167.68,36.43]
[1752470854961,0.69,167.71,167.68,44.98126078]
[1752470855155,0.06,167.73,167.68,36.43]
[1752470855334,0.69,167.72,167.68,36.43]
[1752470855664,1.5273,167.7,167.68,36.43]
[1752470855865,0.69,167.69,167.68,36.43]
[1752470857171,15.20464559,167.69,167.68,0.03]
[1752470857339,15.20464559,167.69,167.68,36.65]
[1752470857668,0.69,167.69,167.68,36.65]
[1752470858660,9.24126078,167.69,167.68,36.65]
[1752470858968,0.69,167.69,167.68,36.65]
[1752470859861,9.24126078,167.69,167.68,36.65]
[1752470860165,15.20464559,167.69,167.68,36.65]
[1752470861043,6.65338481,167.69,167.68,36.65]
[1752470861244,0.69,167.69,167.68,36.65]
[1752470862166,15.20464559,167.69,167.68,36.65]
[1752470862548,9.24126078,167.69,167.68,36.65]
[1752470863063,0.69,167.69,167.68,36.65]
[1752470864852,1.5273,167.7,167.68,36.65]
[1752470865052,0.69,167.72,167.68,36.65]
[1752470865262,0.69,167.71,167.68,36.65]
[1752470865449,0.69,167.71,167.68,45.20126078]
[1752470866156,0.69,167.71,167.68,36.65]
[1752470866469,0.69,167.71,167.68,45.20126078]
[1752470867266,0.69,167.7,167.68,36.65]
[1752470867657,0.69,167.69,167.68,36.65]
[1752470868169,0.69,167.69,167.68,36.19]
[1752470868675,16.78468397,167.68,167.67,0.16441303]
[1752470868850,27.54924475,167.68,167.67,0.16441303]
[1752470869050,10.76456078,167.68,167.67,0.16441303]
[1752470869295,2.2133,167.68,167.67,0.16441303]
[1752470869471,10.76456078,167.68,167.67,0.16441303]
[1752470870168,2.2133,167.68,167.67,0.16441303]
[1752470871071,16.72830123,167.68,167.67,0.16441303]
[1752470872461,2.2133,167.68,167.67,0.16441303]
[1752470873675,1.5233,167.68,167.67,0.16441303]
[1752470874066,2.2675,167.72,167.67,8.71567381]
[1752470874286,0.69,167.71,167.67,0.16441303]
[1752470874579,0.69,167.7,167.67,0.16441303]
[1752470874777,0.69,167.7,167.67,8.71567381]
[1752470874967,0.06,167.73,167.67,0.82441303]
[1752470875167,0.06,167.73,167.7,8.55126078]
[1752470875366,0.06,167.73,167.71,35.92]
[1752470875567,0.69,167.72,167.71,35.92]
[1752470875977,0.06,167.73,167.71,35.92]
[1752470876694,0.06,167.73,167.71,44.47126078]
[1752470876897,0.06,167.73,167.72,8.55126078]
[1752470877966,0.06,167.73,167.71,35.92]
[1752470878181,0.06,167.73,167.72,0.66]
[1752470878386,0.06,167.73,167.72,8.55126078]
[1752470878582,0.06,167.73,167.71,36.58]
[1752470878802,0.06,167.73,167.72,8.55126078]
[1752470878969,0.69,167.72,167.68,0.84068475]
[1752470879174,0.06,167.73,167.71,8.55126078]
[1752470879394,0.06,167.73,167.72,9.21126078]
[1752470880272,0.06,167.73,167.72,44.93126078]
[1752470880964,0.06,167.73,167.69,0.67]
[1752470881171,0.06,167.73,167.7,36.33]
[1752470881369,0.06,167.73,167.72,8.55126078]
[1752470881992,0.06,167.73,167.72,9.22126078]
[1752470883474,0.06,167.73,167.72,26.00594475]
[1752470884346,0.1,167.76,167.75,26.0]
[1752470884594,0.1,167.76,167.75,70.11126078]
[1752470884891,0.1,167.76,167.75,70.78126078]
[1752470885501,0.1,167.76,167.75,35.22126078]
[1752470885707,0.1,167.76,167.75,70.72126078]
[1752470885999,0.1,167.76,167.75,35.22126078]
[1752470886298,0.1,167.76,167.75,70.72126078]
[1752470886483,0.1,167.76,167.75,70.68126078]
[1752470887075,0.1,167.76,167.75,70.66126078]
[1752470887703,0.1,167.78,167.75,94.90424475]
[1752470887997,0.69,167.88,167.8,26.0]
[1752470888207,9.24126078,167.88,167.83,8.55126078]
[1752470888408,0.69,167.87,167.84,35.38]
[1752470889910,8.55126078,167.88,167.84,35.38]
[1752470890099,0.69,167.88,167.84,43.93126078]
[1752470890284,9.24126078,167.9,167.85,8.55126078]
[1752470890613,0.69,167.9,167.86,8.55126078]
[1752470890804,0.69,167.9,167.87,35.32]
[1752470891005,0.69,167.9,167.86,8.55126078]
[1752470891308,0.69,167.9,167.87,35.32]
[1752470891506,0.69,167.9,167.86,8.55126078]
[1752470891703,0.69,167.9,167.87,35.32]
[1752470891912,0.69,167.89,167.87,35.32]
[1752470892415,0.69,167.89,167.88,35.32]
[1752470892588,16.81490285,167.91,167.88,35.32]
[1752470892788,16.12490285,167.91,167.88,35.32]
[1752470893012,0.69,167.9,167.88,35.32]
[1752470893897,6.64601965,167.9,167.88,35.32]
[1752470894100,15.19728043,167.9,167.88,35.32]
[1752470894314,9.24126078,167.9,167.88,35.32]
[1752470894804,0.69,167.9,167.88,35.32]
[1752470895217,0.69,167.89,167.88,35.32]
[1752470895400,0.69,167.89,167.82,1.3861756]
[1752470895587,8.55126078,167.86,167.83,35.3]
[1752470895792,0.69,167.85,167.83,35.3]
[1752470895987,0.69,167.87,167.83,43.85126078]
[1752470896414,0.69,167.86,167.83,35.3]
[1752470897093,8.55126078,167.89,167.84,9.10126078]
[1752470897294,15.19789647,167.88,167.83,8.55126078]
[1752470897603,9.24126078,167.87,167.84,35.3]
[1752470897802,0.69,167.86,167.84,35.3]
[1752470897998,0.69,167.85,167.84,35.3]
[1752470899408,15.1989611,167.85,167.84,35.3]
[1752470899602,15.1989611,167.85,167.82,0.8361756]
[1752470899818,0.69,167.84,167.83,35.3]
[1752470899992,10.86406078,167.84,167.83,35.3]
[1752470900411,2.3128,167.84,167.83,35.3]
[1752470900717,10.86406078,167.84,167.83,35.3]
[1752470901706,26.06,167.86,167.83,43.85126078]
[1752470901912,9.30126078,167.86,167.83,35.3]
[1752470902107,0.69,167.85,167.83,35.3]
[1752470902304,0.06,167.86,167.83,35.3]
[1752470902503,0.06,167.86,167.83,43.85126078]
[1752470902706,0.06,167.86,167.85,8.55126078]
[1752470902909,0.06,167.86,167.84,9.10126078]
[1752470903112,0.06,167.86,167.83,35.3]
[1752470903318,0.06,167.86,167.83,44.40126078]
[1752470903825,0.06,167.86,167.85,8.55126078]
[1752470904211,0.06,167.86,167.85,9.10126078]
[1752470904721,0.06,167.86,167.85,0.55]
[1752470904923,0.06,167.86,167.85,9.10126078]
[1752470905110,0.06,167.86,167.85,8.55126078]
[1752470906100,0.06,167.86,167.83,35.85]
[1752470906300,0.06,167.86,167.84,35.28]
[1752470907308,0.06,167.86,167.84,43.83126078]
[1752470907520,0.06,167.86,167.84,35.28]
[1752470907911,0.06,167.86,167.84,43.83126078]
[1752470908118,0.06,167.86,167.82,0.8361756]
[1752470908313,0.75,167.86,167.83,43.83126078]
[1752470908922,0.06,167.86,167.85,8.55126078]
[1752470909116,0.06,167.86,167.83,35.28]
[1752470909320,0.06,167.86,167.83,43.83126078]
[1752470909623,10.82036078,167.85,167.82,0.8361756]
[1752470909925,10.13036078,167.85,167.84,35.28]
[1752470910120,16.0880611,167.85,167.84,35.28]
[1752470910322,33.56274507,167.85,167.84,35.28]
[1752470910830,16.78468397,167.84,167.82,0.8361756]
[1752470911123,25.33594475,167.83,167.82,0.8361756]
[1752470911323,26.03594475,167.83,167.82,0.8361756]
[1752470911801,52.03594475,167.83,167.82,0.8361756]
[1752470912203,57.99435504,167.83,167.82,0.8361756]
[1752470912603,26.7,167.83,167.82,0.8361756]
[1752470913517,2.2791,167.85,167.82,9.38743638]
[1752470913914,2.2791,167.85,167.82,0.8361756]
[1752470914943,2.2791,167.85,167.82,9.38743638]
[1752470915109,0.7,167.84,167.82,0.8361756]
[1752470915306,1.5791,167.85,167.82,0.8361756]
[1752470915804,2.2791,167.85,167.82,0.8361756]
[1752470916508,2.2791,167.85,167.82,9.38743638]
[1752470916716,2.2791,167.85,167.82,0.8361756]
[1752470916910,0.7,167.84,167.82,0.8361756]
[1752470917924,1.5791,167.85,167.82,0.8361756]
[1752470918622,2.2791,167.85,167.82,9.38743638]
[1752470918833,0.06,167.86,167.83,8.55126078]
[1752470919016,0.06,167.86,167.84,35.26]
[1752470919633,0.06,167.86,167.84,43.81126078]
[1752470920221,0.06,167.86,167.85,9.10126078]
[1752470920907,0.06,167.86,167.85,0.55]
[1752470921510,0.06,167.86,167.85,9.10126078]
[1752470922903,0.06,167.86,167.84,35.26]
[1752470923108,0.06,167.86,167.84,35.81]
[1752470923417,0.06,167.86,167.85,35.24]
[1752470924016,0.06,167.86,167.85,43.79126078]
[1752470924216,0.06,167.86,167.85,35.24]
[1752470924626,0.06,167.86,167.85,43.79126078]
[1752470924831,0.06,167.86,167.85,35.24]
[1752470925224,0.06,167.86,167.85,43.79126078]
[1752470925419,0.06,167.86,167.85,35.79]
[1752470925622,0.06,167.86,167.85,43.79126078]
[1752470926427,0.06,167.86,167.85,8.55126078]
[1752470926618,0.06,167.86,167.85,43.79126078]
[1752470927335,0.06,167.86,167.85,35.24]
[1752470927529,0.06,167.86,167.85,43.79126078]
[1752470928038,0.06,167.86,167.85,35.24]
[1752470928219,0.06,167.86,167.85,43.79126078]
[1752470929050,0.06,167.86,167.85,40.34416692]
[1752470929364,0.06,167.86,167.85,35.24]
[1752470929537,0.06,167.86,167.85,40.34416692]
[1752470930340,0.76,167.86,167.8,32.3066]
[1752470930512,0.06,167.86,167.84,5.10416692]
[1752470930833,0.06,167.86,167.85,40.32416692]
[1752470931353,0.06,167.86,167.85,35.22]
[1752470931516,0.06,167.86,167.85,40.32416692]
[1752470932432,0.06,167.86,167.85,35.22]
[1752470933219,0.06,167.86,167.85,40.32416692]
[1752470934216,0.06,167.86,167.85,35.22]
[1752470934418,0.06,167.86,167.85,40.32416692]
[1752470934819,0.06,167.86,167.85,35.22]
[1752470935123,0.06,167.86,167.85,40.32416692]
[1752470936213,0.06,167.86,167.85,35.22]
[1752470936440,0.06,167.86,167.85,40.32416692]
[1752470939146,0.76,167.86,167.85,35.22]
[1752470939351,0.76,167.86,167.85,35.18]
[1752470939352,0.06,167.86,167.85,35.18]
[1752470939728,0.06,167.86,167.85,40.28416692]
[1752470940230,0.06,167.86,167.85,35.18]
[1752470940558,0.06,167.86,167.85,40.28416692]
[1752470941949,0.06,167.86,167.85,40.83416692]
[1752470943552,0.06,167.86,167.85,35.73]
[1752470943730,0.06,167.86,167.85,40.83416692]
[1752470944431,0.06,167.86,167.85,40.26416692]
[1752470947655,0.06,167.86,167.85,40.81416692]
[1752470948232,0.06,167.86,167.85,35.16]
[1752470948458,0.06,167.86,167.85,40.26416692]
[1752470949374,0.06,167.86,167.85,40.81416692]
[1752470950570,0.06,167.92,167.88,26.0]
[1752470950856,0.06,167.92,167.9,5.10416692]
[1752470951057,0.06,167.92,167.86,26.55]
[1752470951058,0.06,167.92,167.91,35.12]
[1752470951556,0.75,167.92,167.91,35.12]
[1752470951934,0.06,167.92,167.91,35.12]
[1752470952643,0.06,167.92,167.91,40.22416692]
[1752470955238,0.75,167.92,167.91,35.12]
[1752470955644,0.75,167.92,167.91,35.1]
[1752470960963,0.75,167.92,167.91,40.20416692]
[1752470961167,0.75,167.92,167.91,35.1]
[1752470963670,5.85416692,167.92,167.91,35.1]
[1752470963972,0.75,167.92,167.91,35.1]
[1752470964688,6.70521676,167.92,167.91,35.1]
[1752470965474,0.75,167.92,167.91,35.1]
[1752470966864,0.06,167.92,167.91,40.20416692]
[1752470967057,0.06,167.92,167.91,35.1]
[1752470967265,0.06,167.92,167.91,40.20416692]
[1752470967858,0.75,167.92,167.87,26.0]
[1752470968059,0.75,167.92,167.89,5.10416692]
[1752470968255,0.75,167.92,167.87,0.55]
[1752470968256,0.75,167.92,167.9,40.14416692]
[1752470968661,0.75,167.92,167.9,35.04]
[1752470969163,0.69,167.91,167.9,35.04]
[1752470969794,0.06,167.92,167.9,40.14416692]
[1752470969996,0.75,167.92,167.91,5.10416692]
[1752470970288,0.75,167.92,167.9,40.14416692]
[1752470970871,0.06,167.92,167.9,40.14416692]
[1752470971070,0.06,167.92,167.91,5.10416692]
[1752470971280,0.06,167.92,167.91,5.65416692]
[1752470972389,0.06,167.92,167.91,5.10416692]
[1752470976772,0.06,167.92,167.91,40.10416692]
[1752470978983,0.06,167.92,167.91,35.0]
[1752470979179,0.06,167.92,167.91,40.10416692]
[1752470979769,0.06,167.92,167.91,40.65416692]
[1752470980172,0.06,167.92,167.91,40.10416692]
[1752470980509,0.06,167.92,167.91,40.08416692]
[1752470980798,0.06,167.92,167.91,40.63416692]
[1752470981086,0.06,167.92,167.91,40.08416692]
[1752470981876,0.06,167.92,167.91,40.63416692]
[1752470982187,0.06,167.92,167.91,40.08416692]
[1752470982770,0.06,167.93,167.91,71.73833384]
[1752470982970,0.06,167.93,167.92,5.10416692]
[1752470983772,0.06,167.93,167.92,10.75833384]
[1752470984192,0.06,167.93,167.92,5.10416692]
[1752470984568,0.06,167.93,167.92,10.75833384]
[1752470984774,137.80820798,168.1,168.0,17.88]
[1752470984972,10.09251642,168.18,168.09,10.20833384]
[1752470985189,0.16050025,168.24,168.07,3.10265879]
[1752470985190,0.16050025,168.24,168.17,36.20833384]
[1752470985373,0.16050025,168.24,168.23,10.20833384]
[1752470985571,0.16050025,168.24,168.16,19.53378687]
[1752470985884,0.16050025,168.24,168.2,26.0]
[1752470986082,0.16050025,168.24,168.23,10.20833384]
[1752470986376,3.516161,168.25,168.23,45.14833384]
[1752470986584,3.516161,168.25,168.24,10.20833384]
[1752470987083,1.5663,168.39,168.27,43.88]
[1752470987294,30.48599135,168.56,168.41,26.0]
[1752470987593,8.45419801,168.47,168.41,8.45419801]
[1752470987788,0.69,168.46,168.42,34.94]
[1752470987990,0.69,168.46,168.3,8.45419801]
[1752470987991,8.45419801,168.43,168.3,8.45419801]
[1752470988175,0.69,168.42,168.37,8.45419801]
[1752470988376,0.69,168.42,168.38,34.92]
[1752470988377,0.79,168.41,168.38,34.92]
[1752470988774,8.45419801,168.39,168.38,34.92]
[1752470988972,0.69,168.39,168.38,34.92]
[1752470989499,9.14419801,168.39,168.38,34.9]
[1752470989793,0.1,168.41,168.38,43.35419801]
[1752470989992,0.1,168.41,168.4,8.45419801]
[1752470991280,0.1,168.41,168.4,26.0]
[1752470991478,0.1,168.41,168.4,69.31419801]
[1752470991673,0.1,168.41,168.38,26.0]
[1752470991872,0.1,168.41,168.4,8.45419801]
[1752470992216,0.69,168.4,168.37,1.14902595]
[1752470992500,8.45419801,168.38,168.24,89.6]
[1752470992702,0.69,168.38,168.25,34.86]
[1752470992884,0.69,168.38,168.29,8.45419801]
[1752470992885,8.45419801,168.34,168.29,8.45419801]
[1752470993197,0.69,168.36,168.3,34.86]
[1752470993409,0.69,168.36,168.31,34.86]
[1752470993707,0.69,168.35,168.32,34.86]
[1752470993887,0.69,168.34,168.32,34.86]
[1752470994275,0.69,168.33,168.32,34.86]
[1752470994488,12.42329492,168.39,168.32,34.86]
[1752470994689,0.69,168.36,168.32,34.86]
[1752470994880,8.45419801,168.33,168.32,34.86]
[1752470995782,15.0849097,168.33,168.21,25.68]
[1752470995986,0.69,168.32,168.23,8.45419801]
[1752470996180,8.45419801,168.29,168.24,8.45419801]
[1752470996381,8.45419801,168.29,168.24,9.52678327]
[1752470996699,8.45419801,168.29,168.22,35.34]
[1752470996700,8.45419801,168.28,168.25,1.07252151]
[1752470996910,8.45419801,168.28,168.26,34.84]
[1752470997103,5.94071169,168.33,168.26,34.84]
[1752470997282,8.45419801,168.32,168.27,8.45419801]
[1752470997479,8.45419801,168.31,168.26,34.84]
[1752470997681,8.45419801,168.31,168.26,43.29419801]
[1752470997889,0.69,168.34,168.27,8.45419801]
[1752470998199,8.45419801,168.33,168.28,8.45419801]
[1752470998403,8.45419801,168.33,168.26,34.84]
[1752470998608,8.45419801,168.32,168.27,8.45419801]
[1752470999104,8.45419801,168.28,168.25,1.07252151]
[1752470999284,8.45419801,168.28,168.26,34.82]
[1752470999999,8.45419801,168.27,168.26,34.82]
[1752471000192,9.14419801,168.27,168.25,1.07252151]
[1752471000393,0.69,168.26,168.25,1.07252151]
[1752471000703,8.45419801,168.28,168.26,34.8]
[1752471000904,0.69,168.32,168.26,34.8]
[1752471001102,8.45419801,168.32,168.27,8.45419801]
[1752471001306,0.69,168.35,168.26,34.8]
[1752471001616,8.45419801,168.39,168.34,8.45419801]
[1752471001776,14.49219357,168.41,168.36,8.45419801]
[1752471001980,14.49219357,168.41,168.35,34.8]
[1752471001981,0.1,168.41,168.35,34.8]
[1752471002181,0.1,168.41,168.38,8.45419801]
[1752471002494,0.1,168.41,168.3,51.23888198]
[1752471002495,8.55419801,168.41,168.39,34.8]
[1752471002686,9.25419801,168.41,168.4,34.8]
[1752471002887,0.8,168.41,168.4,34.8]
[1752471003099,0.1,168.41,168.4,34.8]
[1752471004480,0.8,168.41,168.4,34.8]
[1752471004702,0.1,168.41,168.4,47.7525922]
[1752471005603,0.1,168.41,168.4,34.78]
[1752471005785,13.0525922,168.41,168.4,34.78]
[1752471005985,0.1,168.41,168.4,34.78]
[1752471006311,0.1,168.41,168.37,12.9525922]
[1752471006312,6.03795052,168.41,168.37,12.9525922]
[1752471006610,13.6525922,168.4,168.38,34.78]
[1752471006808,13.6525922,168.4,168.35,12.9525922]
[1752471007005,13.6525922,168.4,168.36,34.76]
[1752471007307,6.03795052,168.41,168.39,12.9525922]
[1752471007308,0.1,168.41,168.39,12.9525922]
[1752471007505,0.1,168.41,168.4,34.76]
[1752471007714,0.8,168.41,168.4,34.76]
[1752471007889,13.7525922,168.41,168.4,34.76]
[1752471008088,6.73788967,168.41,168.4,34.76]
[1752471008489,0.1,168.41,168.4,34.76]
[1752471009003,0.1,168.41,168.4,47.7125922]
[1752471010207,0.1,168.41,168.4,64.49727617]
[1752471010392,0.1,168.41,168.4,47.7125922]
[1752471010710,0.1,168.41,168.4,73.6925922]
[1752471011310,0.1,168.41,168.4,64.47727617]
[1752471011511,0.1,168.41,168.4,82.35727617]
[1752471011730,18.00152646,168.53,168.44,26.0]
[1752471012013,0.7,168.55,168.44,26.0]
[1752471012014,0.7,168.55,168.5,12.9525922]
[1752471012223,12.9525922,168.56,168.51,34.72]
[1752471012402,12.9525922,168.52,168.44,26.0]
[1752471012611,12.9525922,168.5,168.45,47.6725922]
[1752471012911,12.9525922,168.51,168.45,47.6725922]
[1752471013114,12.9525922,168.5,168.45,12.9525922]
[1752471013301,12.9525922,168.51,168.46,47.6725922]
[1752471013503,12.9525922,168.51,168.45,12.9525922]
[1752471013504,12.9525922,168.5,168.45,12.9525922]
[1752471013798,0.7,168.49,168.41,25.62]
[1752471014001,12.9525922,168.47,168.42,47.6725922]
[1752471014420,6.63513236,168.49,168.42,34.72]
[1752471014590,12.9525922,168.46,168.42,34.72]
[1752471014790,12.9525922,168.47,168.42,47.6725922]
[1752471015118,12.9525922,168.46,168.41,38.5725922]
[1752471015317,12.9525922,168.46,168.42,34.7]
[1752471015513,12.9525922,168.45,168.41,25.62]
[1752471015819,0.7,168.48,168.42,34.7]
[1752471015997,6.63546093,168.48,168.42,34.7]
[1752471016200,12.9525922,168.46,168.43,1.07137532]
[1752471016514,0.7,168.48,168.43,1.07137532]
[1752471016723,12.9525922,168.46,168.43,1.07137532]
[1752471016937,12.9525922,168.45,168.43,1.07137532]
[1752471017097,13.6525922,168.44,168.43,1.07137532]
[1752471017296,13.6525922,168.44,168.43,35.03137532]
[1752471017928,37.56483001,168.43,168.31,0.71]
[1752471018221,12.9525922,168.33,168.32,34.68]
[1752471019307,0.7,168.39,168.32,34.68]
[1752471019617,12.9525922,168.35,168.32,34.68]
[1752471019824,12.9525922,168.34,168.32,34.68]
[1752471020197,12.9525922,168.33,168.32,34.68]
[1752471020617,13.6525922,168.33,168.28,0.9458959]
[1752471020821,0.7,168.32,168.28,0.9458959]
[1752471021031,12.9525922,168.29,168.28,0.9458959]
[1752471021198,13.6525922,168.29,168.28,0.9458959]
[1752471021399,13.6525922,168.29,168.27,34.66]
[1752471021615,39.6525922,168.28,168.27,34.66]
[1752471022211,12.79979102,168.3,168.27,34.66]
[1752471022418,12.9525922,168.28,168.27,34.66]
[1752471022607,13.6525922,168.28,168.27,34.66]
[1752471022807,26.0,168.26,168.18,0.74]
[1752471023024,26.0,168.26,168.18,0.03]
[1752471023231,39.6525922,168.26,168.18,0.03]
[1752471023432,39.6525922,168.26,168.18,12.9825922]
[1752471023605,39.6525922,168.26,168.18,0.03]
[1752471023810,39.6525922,168.26,168.19,12.9525922]
[1752471023811,13.6525922,168.26,168.19,12.9525922]
[1752471024125,12.9525922,168.26,168.25,34.69]
[1752471024330,18.89577536,168.26,168.25,34.69]
[1752471024638,34.45373328,168.26,168.18,0.03]
[1752471024808,12.9525922,168.22,168.18,0.03]
[1752471025214,12.9525922,168.21,168.18,0.03]
[1752471025520,12.9525922,168.19,168.18,0.03]
[1752471025926,13.6525922,168.19,168.18,34.69]
[1752471026122,12.9525922,168.19,168.18,34.69]
[1752471026518,14.85795792,168.26,168.18,34.69]
[1752471026519,12.9525922,168.21,168.18,34.69]
[1752471026839,12.9525922,168.25,168.19,0.71]
[1752471027141,12.9525922,168.24,168.19,13.6625922]
[1752471027431,12.9525922,168.24,168.18,34.69]
[1752471027629,12.9525922,168.24,168.19,13.6625922]
[1752471028320,12.9525922,168.22,168.18,34.69]
[1752471028520,12.9525922,168.2,168.18,34.69]
[1752471029127,12.9525922,168.19,168.18,0.03]
[1752471029320,12.9525922,168.19,168.18,34.67]
[1752471030522,18.89824889,168.19,168.18,34.67]
[1752471031840,19.57824889,168.19,168.18,0.03]
[1752471032047,19.57824889,168.19,168.18,34.67]
[1752471032346,19.57824889,168.19,168.13,0.94673979]
[1752471032347,34.09567073,168.19,168.13,0.94673979]
[1752471032526,0.68,168.18,168.13,0.94673979]
[1752471032726,12.9525922,168.15,168.13,0.94673979]